fUST/lending_fUST_20240715
["ID","MTS","AMOUNT","RATE_DAILY","PERIOD"]
[332179228,1721008248951,-500.0,0.00024931,2]
[332179229,1721008248962,-506.82989072,0.00024931,2]
[332179230,1721008248972,-500.0,0.00024931,2]
[332179231,1721008248983,-508.98059983,0.00024931,2]
[332179232,1721008248993,-500.0,0.00024931,2]
[332179233,1721008249003,-500.0,0.00024931,2]
[332179234,1721008249012,-500.0,0.00024931,2]
[332179235,1721008249022,-500.0,0.00024931,2]
[332179236,1721008249032,-354.06042034,0.00024931,2]
[332179237,1721008249045,-145.93957966,0.00024931,2]
[332179238,1721008249054,-115.87042034,0.00024931,2]
[332179241,1721008484131,155.3848742,0.00014999,2]
[332179246,1721008544847,998.70694637,0.00014999,2]
[332179267,1721008823295,190.555,0.00019,10]
[332179269,1721008973565,2144.62440414,0.00014999,2]
[332179270,1721009106613,505.49322258,0.00014999,2]
[332179272,1721009136891,2674.2174896,0.00014999,2]
[332179274,1721009160398,10000.0,0.00019,10]
[332179275,1721009238888,580.2264804,0.00014999,2]
[332179276,1721009243843,527.3234158,0.00014999,2]
[332179277,1721009278882,2248.51879704,0.00014999,2]
[332179278,1721009287312,526.40974663,0.00014999,2]
[332179337,1721009434097,-252.93533496,0.0001818,2]
[332179339,1721009434107,-1692.34493732,0.000189,2]
[332179341,1721009434116,-741.51898683,0.00019164,2]
[332179343,1721009434125,-411.907718,0.00021096,2]
[332179345,1721009434135,-620.0005308,0.00021475,2]
[332179347,1721009434145,-1066.73188738,0.00021917,2]
[332179349,1721009434154,-154.97337313,0.00021917,2]
[332179351,1721009434163,-1203.72030367,0.00021917,2]
[332179353,1721009434173,-166.666666,0.00021986,2]
[332179354,1721009434182,-160.7894464,0.00022265,2]
[332179355,1721009434191,-620.00002654,0.00022549,2]
[332179356,1721009434201,-166.666666,0.00022585,2]
[332179357,1721009434211,-281.63493225,0.00022943,2]
[332179358,1721009434225,-154.57491897,0.00022943,2]
[332179359,1721009434235,-172.9230001,0.00022953,2]
[332179360,1721009434244,-166.666666,0.00023185,2]
[332179361,1721009434255,-155.10975413,0.00023453,2]
[332179362,1721009434264,-324.82687718,0.00023453,2]
[332179363,1721009434274,-241.39523986,0.00023455,2]
[332179364,1721009434283,-355.67960083,0.00023455,2]
[332179365,1721009434294,-620.00000133,0.00023676,2]
[332179366,1721009434303,-166.666666,0.00023784,2]
[332179367,1721009434314,-216.0,0.00023899,2]
[332179368,1721009434323,-1692.34493732,0.000239,2]
[332179369,1721009434332,-161.42490948,0.00023966,2]
[332179370,1721009434342,-209.1,0.0002416,2]
[332179371,1721009434351,-500.0,0.00024315,2]
[332179372,1721009434361,-166.666666,0.00024384,2]
[332179373,1721009434371,-253.43140271,0.00024392,2]
[332179405,1721009438719,-1153.56859729,0.00024392,2]
[332179407,1721009438730,-306.33251669,0.00024417,2]
[332179408,1721009438739,-2123.56489612,0.00024444,2]
[332179409,1721009438749,-1361.74587991,0.00024457,2]
[332179410,1721009438759,-500.0,0.00024536,2]
[332179411,1721009438769,-549.21511642,0.00024536,2]
[332179412,1721009438779,-66249.8568552,0.00024537,3]
[332179413,1721009438790,-4500.0,0.00024544,2]
[332179414,1721009438801,-607.23789332,0.00024546,2]
[332179415,1721009438812,-500.0,0.00024546,2]
[332179416,1721009438822,-500.0,0.00024546,2]
[332179417,1721009438832,-279.14362581,0.00024546,2]
[332179418,1721009438843,-88888.0,0.00024547,3]
[332179419,1721009438853,-2000.0,0.00024547,2]
[332179420,1721009438864,-1192.95466543,0.00024547,2]
[332179421,1721009438874,-1192.95466543,0.0002455,2]
[332179422,1721009438886,-1192.95466543,0.00024552,2]
[332179423,1721009438896,-1192.95466543,0.00024555,2]
[332179424,1721009438906,-1192.95466543,0.00024557,2]
[332179426,1721009438917,-187060.00289423,0.00024647,3]
[332179561,1721009440735,-77939.42452677,0.00024647,3]
[332179563,1721009440745,-9686.70382809,0.00024657,5]
[332179565,1721009440755,-391.61496655,0.00024657,2]
[332179567,1721009440764,-500.0,0.00024657,2]
[332179569,1721009440774,-503.06287828,0.00024657,2]
[332179571,1721009440783,-543.0506052,0.00024657,2]
[332179573,1721009440793,-500.0,0.00024657,2]
[332179574,1721009440802,-505.24553905,0.00024657,2]
[332179575,1721009440812,-500.0,0.00024657,2]
[332179577,1721009440823,-503.19748351,0.00024657,2]
[332179579,1721009440832,-537.68541117,0.00024657,2]
[332179581,1721009440841,-500.0,0.00024657,2]
[332179583,1721009440851,-500.0,0.00024657,2]
[332179585,1721009440860,-500.0,0.00024657,2]
[332179586,1721009440869,-500.0,0.00024657,2]
[332179588,1721009440879,-500.0,0.00024657,2]
[332179589,1721009440888,-500.0,0.00024657,2]
[332179590,1721009440898,-500.0,0.00024657,2]
[332179591,1721009440908,-500.0,0.00024657,2]
[332179592,1721009440918,-500.0,0.00024657,2]
[332179593,1721009440929,-519.10902499,0.00024657,2]
[332179594,1721009440939,-518.96900686,0.00024657,2]
[332179595,1721009440948,-503.23523803,0.00024657,2]
[332179596,1721009440957,-500.0,0.00024657,2]
[332179597,1721009440967,-500.0,0.00024657,2]
[332179598,1721009440976,-500.0,0.00024657,2]
[332179599,1721009440985,-500.0,0.00024657,2]
[332179600,1721009440995,-500.0,0.00024657,2]
[332179601,1721009441004,-378.36834921,0.00024657,2]
[332179602,1721009441013,-500.0,0.00024657,2]
[332179603,1721009441023,-500.0,0.00024657,2]
[332179604,1721009441032,-500.0,0.00024657,2]
[332179605,1721009441041,-378.93831481,0.00024657,2]
[332179606,1721009441050,-500.0,0.00024657,2]
[332179607,1721009441059,-500.0,0.00024657,2]
[332179608,1721009441068,-500.0,0.00024657,2]
[332179609,1721009441078,-528.75077034,0.00024657,2]
[332179610,1721009441087,-515.00837815,0.00024657,2]
[332179611,1721009441097,-500.0,0.00024657,2]
[332179612,1721009441106,-500.0,0.00024657,2]
[332179613,1721009441115,-500.0,0.00024657,2]
[332179614,1721009441124,-528.7983058,0.00024657,2]
[332179615,1721009441133,-500.0,0.00024657,2]
[332179616,1721009441142,-500.0,0.00024657,2]
[332179617,1721009441151,-509.32613113,0.00024657,2]
[332179618,1721009441161,-500.0,0.00024657,2]
[332179619,1721009441170,-502.77199462,0.00024657,2]
[332179620,1721009441179,-500.0,0.00024657,2]
[332179621,1721009441188,-503.6111805,0.00024657,2]
[332179622,1721009441197,-500.0,0.00024657,2]
[332179623,1721009441207,-500.0,0.00024657,2]
[332179624,1721009441219,-500.0,0.00024657,2]
[332179625,1721009441228,-504.33140913,0.00024657,2]
[332179626,1721009441237,-500.0,0.00024657,2]
[332179627,1721009441247,-500.0,0.00024657,2]
[332179628,1721009441256,-501.2722476,0.00024657,2]
[332179629,1721009441266,-500.0,0.00024657,2]
[332179630,1721009441275,-501.62910118,0.00024657,2]
[332179631,1721009441285,-504.42363092,0.00024657,2]
[332179632,1721009441297,-503.19769547,0.00024657,2]
[332179633,1721009441306,-511.8920678,0.00024657,2]
[332179634,1721009441317,-500.0,0.00024657,2]
[332179635,1721009441326,-500.0,0.00024657,2]
[332179636,1721009441336,-500.0,0.00024657,2]
[332179637,1721009441345,-501.23163222,0.00024657,2]
[332179638,1721009441354,-500.0,0.00024657,2]
[332179639,1721009441364,-500.0,0.00024657,2]
[332179640,1721009441373,-500.0,0.00024657,2]
[332179641,1721009441383,-500.0,0.00024657,2]
[332179642,1721009441392,-500.0,0.00024657,2]
[332179643,1721009441401,-501.28772361,0.00024657,2]
[332179644,1721009441410,-500.0,0.00024657,2]
[332179645,1721009441421,-556.02474155,0.00024657,2]
[332179646,1721009441430,-500.0,0.00024657,2]
[332179647,1721009441440,-500.0,0.00024657,2]
[332179648,1721009441451,-503.01824375,0.00024657,2]
[332179649,1721009441461,-501.97546178,0.00024657,2]
[332179650,1721009441471,-500.0,0.00024657,2]
[332179651,1721009441482,-500.0,0.00024657,2]
[332179652,1721009441493,-500.0,0.00024657,2]
[332179653,1721009441503,-505.2861566,0.00024657,2]
[332179654,1721009441513,-500.0,0.00024657,2]
[332179655,1721009441524,-500.0,0.00024657,2]
[332179656,1721009441533,-500.0,0.00024657,2]
[332179657,1721009441543,-500.91209916,0.00024657,2]
[332179658,1721009441552,-500.0,0.00024657,2]
[332179659,1721009441561,-501.30625876,0.00024657,2]
[332179660,1721009441571,-501.178986,0.00024657,2]
[332179661,1721009441580,-500.0,0.00024657,2]
[332179662,1721009441589,-500.0,0.00024657,2]
[332179663,1721009441599,-500.0,0.00024657,2]
[332179664,1721009441608,-500.0,0.00024657,2]
[332179665,1721009441616,-500.0,0.00024657,2]
[332179666,1721009441625,-500.0,0.00024657,2]
[332179667,1721009441635,-500.0,0.00024657,2]
[332179668,1721009441643,-513.08364485,0.00024657,2]
[332179669,1721009441652,-472.20337247,0.00024657,2]
[332179670,1721009441662,-438.36043315,0.00024657,2]
[332179671,1721009441672,-500.0,0.00024657,2]
[332179672,1721009441680,-500.0,0.00024657,2]
[332179673,1721009441690,-504.08446801,0.00024657,2]
[332179674,1721009441699,-500.0,0.00024657,2]
[332179675,1721009441709,-500.0,0.00024657,2]
[332179676,1721009441718,-510.49777851,0.00024657,2]
[332179677,1721009441727,-500.0,0.00024657,2]
[332179678,1721009441736,-500.0,0.00024657,2]
[332179679,1721009441746,-514.15243101,0.00024657,2]
[332179680,1721009441756,-500.0,0.00024657,2]
[332179681,1721009441766,-500.0,0.00024657,2]
[332179682,1721009441778,-488.95170897,0.00024657,2]
[332179683,1721009441788,-500.0,0.00024657,2]
[332179684,1721009441798,-500.64577095,0.00024657,2]
[332179685,1721009441809,-500.0,0.00024657,2]
[332179686,1721009441822,-500.0,0.00024657,2]
[332179687,1721009441831,-498.73436249,0.00024657,2]
[332179688,1721009441841,-500.5725604,0.00024657,2]
[332179689,1721009441850,-500.0,0.00024657,2]
[332179690,1721009441859,-500.0,0.00024657,2]
[332179691,1721009441868,-509.11486679,0.00024657,2]
[332179692,1721009441877,-500.0,0.00024657,2]
[332179693,1721009441886,-500.0,0.00024657,2]
[332179694,1721009441895,-500.0,0.00024657,2]
[332179695,1721009441904,-500.0,0.00024657,2]
[332179696,1721009441913,-501.75984912,0.00024657,2]
[332179697,1721009441922,-500.0,0.00024657,2]
[332179698,1721009441931,-500.0,0.00024657,2]
[332179699,1721009441941,-500.0,0.00024657,2]
[332179700,1721009441950,-503.61667129,0.00024657,2]
[332179701,1721009441959,-500.0,0.00024657,2]
[332179702,1721009441969,-500.0,0.00024657,2]
[332179703,1721009441978,-501.02034836,0.00024657,2]
[332179704,1721009441987,-503.17151581,0.00024657,2]
[332179705,1721009441996,-500.6530119,0.00024657,2]
[332179706,1721009442006,-500.0,0.00024657,2]
[332179707,1721009442015,-507.14597769,0.00024657,2]
[332179708,1721009442024,-501.60291104,0.00024657,2]
[332179709,1721009442034,-412.28692648,0.00024657,2]
[332179710,1721009442043,-500.0,0.00024657,2]
[332179711,1721009442052,-501.20182589,0.00024657,2]
[332179712,1721009442061,-513.11340021,0.00024657,2]
[332179713,1721009442070,-500.0,0.00024657,2]
[332179714,1721009442079,-500.0,0.00024657,2]
[332179715,1721009442088,-500.0,0.00024657,2]
[332179716,1721009442097,-500.0,0.00024657,2]
[332179717,1721009442107,-500.0,0.00024657,2]
[332179718,1721009442115,-502.73474295,0.00024657,2]
[332179719,1721009442124,-528.53739632,0.00024657,2]
[332179720,1721009442133,-500.0,0.00024657,2]
[332179721,1721009442142,-500.0,0.00024657,2]
[332179722,1721009442151,-507.95315657,0.00024657,2]
[332179723,1721009442160,-500.0,0.00024657,2]
[332179724,1721009442169,-517.99164239,0.00024657,2]
[332179725,1721009442178,-500.0,0.00024657,2]
[332179726,1721009442187,-500.0,0.00024657,2]
[332179727,1721009442196,-500.0,0.00024657,2]
[332179728,1721009442205,-500.0,0.00024657,2]
[332179729,1721009442218,-500.0,0.00024657,2]
[332179730,1721009442227,-500.0,0.00024657,2]
[332179731,1721009442236,-1500.0,0.00024657,2]
[332179732,1721009442245,-500.0,0.00024657,2]
[332179733,1721009442255,-500.0,0.00024657,2]
[332179734,1721009442263,-500.0,0.00024657,2]
[332179735,1721009442272,-500.71151987,0.00024657,2]
[332179736,1721009442282,-500.0,0.00024657,2]
[332179737,1721009442292,-500.0,0.00024657,2]
[332179738,1721009442302,-500.0,0.00024657,2]
[332179739,1721009442310,-736.91,0.00024657,2]
[332179740,1721009442319,-500.0,0.00024657,2]
[332179741,1721009442330,-500.0,0.00024657,2]
[332179742,1721009442339,-500.0,0.00024657,2]
[332179743,1721009442349,-381.78101549,0.00024657,2]
[332179744,1721009442358,-503.17747868,0.00024657,2]
[332179745,1721009442367,-500.0,0.00024657,2]
[332179746,1721009442376,-500.0,0.00024657,2]
[332179747,1721009442385,-500.0,0.00024657,2]
[332179748,1721009442395,-500.0,0.00024657,2]
[332179749,1721009442403,-500.0,0.00024657,2]
[332179750,1721009442414,-500.0,0.00024657,2]
[332179751,1721009442423,-511.99518134,0.00024657,2]
[332179752,1721009442433,-500.0,0.00024657,2]
[332179753,1721009442442,-500.0,0.00024657,2]
[332179754,1721009442451,-500.0,0.00024657,2]
[332179755,1721009442460,-500.0,0.00024657,2]
[332179756,1721009442470,-500.0,0.00024657,2]
[332179757,1721009442479,-500.0,0.00024657,2]
[332179758,1721009442488,-500.0,0.00024657,2]
[332179759,1721009442497,-500.0,0.00024657,2]
[332179760,1721009442506,-500.0,0.00024657,2]
[332179761,1721009442515,-500.0,0.00024657,2]
[332179762,1721009442524,-500.0,0.00024657,2]
[332179763,1721009442533,-564.24808759,0.00024657,2]
[332179764,1721009442542,-500.0,0.00024657,2]
[332179765,1721009442552,-534.85518723,0.00024657,2]
[332179766,1721009442562,-500.0,0.00024657,2]
[332179767,1721009442572,-500.0,0.00024657,2]
[332179768,1721009442582,-500.0,0.00024657,2]
[332179769,1721009442593,-500.0,0.00024657,2]
[332179770,1721009442603,-500.0,0.00024657,2]
[332179771,1721009442613,-500.0,0.00024657,2]
[332179772,1721009442623,-524.88037316,0.00024657,2]
[332179773,1721009442634,-500.0,0.00024657,2]
[332179774,1721009442645,-500.0,0.00024657,2]
[332179775,1721009442655,-500.0,0.00024657,2]
[332179776,1721009442664,-500.0,0.00024657,2]
[332179777,1721009442675,-500.0,0.00024657,2]
[332179778,1721009442687,-500.0,0.00024657,2]
[332179779,1721009442698,-500.0,0.00024657,2]
[332179780,1721009442706,-500.0,0.00024657,2]
[332179781,1721009442716,-500.0,0.00024657,2]
[332179782,1721009442725,-500.0,0.00024657,2]
[332179783,1721009442734,-500.0,0.00024657,2]
[332179784,1721009442744,-500.0,0.00024657,2]
[332179785,1721009442753,-242.62110362,0.00024657,2]
[332179786,1721009442763,-535.47823322,0.00024657,2]
[332179787,1721009442773,-500.0,0.00024657,2]
[332179788,1721009442782,-500.0,0.00024657,2]
[332179789,1721009442791,-500.0,0.00024657,2]
[332179790,1721009442800,-500.0,0.00024657,2]
[332179791,1721009442810,-500.0,0.00024657,2]
[332179792,1721009442819,-525.37187931,0.00024657,2]
[332179793,1721009442828,-500.0,0.00024657,2]
[332179794,1721009442838,-500.0,0.00024657,2]
[332179795,1721009442847,-500.0,0.00024657,2]
[332179796,1721009442856,-500.0,0.00024657,2]
[332179797,1721009442866,-500.0,0.00024657,2]
[332179798,1721009442876,-500.0,0.00024657,2]
[332179799,1721009442885,-500.0,0.00024657,2]
[332179800,1721009442895,-500.0,0.00024657,2]
[332179801,1721009442905,-500.0,0.00024657,2]
[332179804,1721009443013,-500.0,0.00024657,2]
[332179806,1721009443023,-500.0,0.00024657,2]
[332179807,1721009443032,-500.0,0.00024657,2]
[332179808,1721009443041,-500.0,0.00024657,2]
[332179809,1721009443050,-502.12035906,0.00024657,2]
[332179810,1721009443059,-500.0,0.00024657,2]
[332179811,1721009443068,-176.88542013,0.00024657,2]
[332179812,1721009443078,-500.0,0.00024657,2]
[332179813,1721009443087,-500.0,0.00024657,2]
[332179814,1721009443096,-500.0,0.00024657,2]
[332179815,1721009443105,-500.0,0.00024657,2]
[332179816,1721009443114,-500.0,0.00024657,2]
[332179819,1721009443123,-500.0,0.00024657,2]
[332179821,1721009443132,-500.0,0.00024657,2]
[332179822,1721009443141,-500.0,0.00024657,2]
[332179824,1721009443150,-500.0,0.00024657,2]
[332179826,1721009443159,-500.0,0.00024657,2]
[332179830,1721009443169,-153.78341379,0.00024657,2]
[332179831,1721009443179,-543.81479352,0.00024657,2]
[332179833,1721009443189,-505.42896189,0.00024657,2]
[332179834,1721009443198,-500.0,0.00024657,2]
[332179835,1721009443207,-500.0,0.00024657,2]
[332179836,1721009443219,-500.0,0.00024657,2]
[332179837,1721009443228,-500.0,0.00024657,2]
[332179838,1721009443237,-274.66975433,0.00024657,2]
[332179839,1721009443246,-500.72496377,0.00024657,2]
[332179840,1721009443256,-500.0,0.00024657,2]
[332179841,1721009443265,-548.00304975,0.00024657,2]
[332179842,1721009443275,-500.0,0.00024657,2]
[332179843,1721009443284,-500.0,0.00024657,2]
[332179844,1721009443295,-981.64,0.00024657,2]
[332179846,1721009443304,-500.0,0.00024657,2]
[332179848,1721009443313,-500.0,0.00024657,2]
[332179850,1721009443322,-500.0,0.00024657,2]
[332179852,1721009443332,-188.22383387,0.00024657,2]
[332179854,1721009443341,-500.0,0.00024657,2]
[332179856,1721009443350,-500.0,0.00024657,2]
[332179858,1721009443359,-500.0,0.00024657,2]
[332179860,1721009443369,-504.96779342,0.00024657,2]
[332179861,1721009443378,-500.0,0.00024657,2]
[332179863,1721009443387,-500.0,0.00024657,2]
[332179865,1721009443397,-500.0,0.00024657,2]
[332179867,1721009443406,-506.72888823,0.00024657,2]
[332179868,1721009443416,-500.0,0.00024657,2]
[332179869,1721009443425,-500.0,0.00024657,2]
[332179870,1721009443434,-500.0,0.00024657,2]
[332179871,1721009443443,-500.0,0.00024657,2]
[332179872,1721009443452,-500.0,0.00024657,2]
[332179873,1721009443462,-500.0,0.00024657,2]
[332179874,1721009443471,-500.0,0.00024657,2]
[332179876,1721009443480,-500.0,0.00024657,2]
[332179878,1721009443489,-500.0,0.00024657,2]
[332179879,1721009443498,-500.0,0.00024657,2]
[332179881,1721009443507,-500.0,0.00024657,2]
[332179883,1721009443516,-500.0,0.00024657,2]
[332179885,1721009443526,-500.0,0.00024657,2]
[332179886,1721009443535,-500.0,0.00024657,2]
[332179887,1721009443545,-200.0,0.00024657,2]
[332179888,1721009443554,-500.0,0.00024657,2]
[332179889,1721009443563,-500.0,0.00024657,2]
[332179890,1721009443575,-500.0,0.00024657,2]
[332179891,1721009443584,-427.14791708,0.00024657,2]
[332179892,1721009443593,-277.23641099,0.00024657,2]
[332179893,1721009443602,-500.0,0.00024657,2]
[332179894,1721009443617,-500.0,0.00024657,2]
[332179895,1721009443626,-500.0,0.00024657,2]
[332179896,1721009443636,-500.0,0.00024657,2]
[332179897,1721009443645,-597.54732222,0.00024657,2]
[332179898,1721009443655,-500.0,0.00024657,2]
[332179900,1721009443664,-500.0,0.00024657,2]
[332179902,1721009443673,-500.0,0.00024657,2]
[332179903,1721009443682,-500.0,0.00024657,2]
[332179905,1721009443691,-500.0,0.00024657,2]
[332179907,1721009443700,-1000.97530222,0.00024657,5]
[332179909,1721009443709,-500.0,0.00024657,2]
[332179911,1721009443718,-506.11564479,0.00024657,2]
[332179913,1721009443728,-500.0,0.00024657,2]
[332179914,1721009443738,-500.0,0.00024657,2]
[332179916,1721009443748,-517.83614114,0.00024657,2]
[332179918,1721009443757,-500.0,0.00024657,2]
[332179919,1721009443767,-501.91310009,0.00024657,2]
[332179920,1721009443777,-500.0,0.00024657,2]
[332179921,1721009443787,-500.0,0.00024657,2]
[332179922,1721009443796,-500.0,0.00024657,2]
[332179923,1721009443806,-500.0,0.00024657,2]
[332179924,1721009443817,-504.43721989,0.00024657,2]
[332179925,1721009443827,-500.0,0.00024657,2]
[332179926,1721009443837,-500.0,0.00024657,2]
[332179927,1721009443846,-500.0,0.00024657,2]
[332179928,1721009443855,-500.0,0.00024657,2]
[332179929,1721009443864,-500.0,0.00024657,2]
[332179930,1721009443873,-500.0,0.00024657,2]
[332179931,1721009443882,-517.22428827,0.00024657,2]
[332179932,1721009443893,-500.0,0.00024657,2]
[332179933,1721009443902,-500.0,0.00024657,2]
[332179934,1721009443912,-500.0,0.00024657,2]
[332179935,1721009443922,-500.0,0.00024657,2]
[332179936,1721009443933,-500.0,0.00024657,2]
[332179937,1721009443943,-500.0,0.00024657,2]
[332179938,1721009443953,-151.0,0.00024657,7]
[332179940,1721009443962,-500.0,0.00024657,2]
[332179941,1721009443971,-500.0,0.00024657,2]
[332179942,1721009443980,-500.0,0.00024657,2]
[332179943,1721009443989,-500.0,0.00024657,2]
[332179944,1721009443998,-500.0,0.00024657,2]
[332179945,1721009444007,-500.0,0.00024657,2]
[332179946,1721009444017,-500.0,0.00024657,2]
[332179947,1721009444025,-501.41734873,0.00024657,2]
[332179948,1721009444035,-500.0,0.00024657,2]
[332179949,1721009444044,-506.48828344,0.00024657,2]
[332179950,1721009444053,-500.0,0.00024657,2]
[332179951,1721009444062,-500.0,0.00024657,2]
[332179952,1721009444071,-500.0,0.00024657,2]
[332179953,1721009444080,-200.0,0.00024657,7]
[332179954,1721009444090,-500.0,0.00024657,2]
[332179955,1721009444101,-500.0,0.00024657,2]
[332179956,1721009444110,-390.73947296,0.00024657,2]
[332179957,1721009444119,-500.0,0.00024657,2]
[332179958,1721009444128,-500.0,0.00024657,2]
[332179959,1721009444139,-500.0,0.00024657,2]
[332179960,1721009444151,-500.0,0.00024657,2]
[332179961,1721009444160,-500.0,0.00024657,2]
[332179962,1721009444169,-515.9535972,0.00024657,2]
[332179963,1721009444179,-500.0,0.00024657,2]
[332179964,1721009444190,-500.0,0.00024657,2]
[332179965,1721009444199,-331.76832264,0.00024657,2]
[332179966,1721009444209,-500.0,0.00024657,2]
[332179967,1721009444222,-500.0,0.00024657,2]
[332179968,1721009444231,-500.0,0.00024657,2]
[332179969,1721009444241,-500.0,0.00024657,2]
[332179970,1721009444250,-500.0,0.00024657,2]
[332179971,1721009444260,-500.0,0.00024657,2]
[332179972,1721009444269,-500.0,0.00024657,2]
[332179973,1721009444279,-500.0,0.00024657,2]
[332179974,1721009444290,-500.0,0.00024657,2]
[332179975,1721009444299,-501.67540272,0.00024657,2]
[332179976,1721009444309,-500.0,0.00024657,2]
[332179977,1721009444318,-500.0,0.00024657,2]
[332179978,1721009444327,-500.0,0.00024657,2]
[332179979,1721009444336,-500.0,0.00024657,2]
[332179980,1721009444345,-500.0,0.00024657,2]
[332179981,1721009444355,-567.65975498,0.00024657,2]
[332179982,1721009444364,-500.0,0.00024657,2]
[332179983,1721009444373,-500.0,0.00024657,2]
[332179984,1721009444382,-500.0,0.00024657,2]
[332179985,1721009444391,-500.0,0.00024657,2]
[332179986,1721009444400,-500.0,0.00024657,2]
[332179987,1721009444409,-500.0,0.00024657,2]
[332179988,1721009444418,-151.0,0.00024657,7]
[332179989,1721009444427,-500.0,0.00024657,2]
[332179990,1721009444436,-500.0,0.00024657,2]
[332179991,1721009444445,-500.0,0.00024657,2]
[332179992,1721009444454,-151.0,0.00024657,7]
[332179993,1721009444464,-500.0,0.00024657,2]
[332179994,1721009444473,-500.0,0.00024657,2]
[332179995,1721009444481,-496.0,0.00024657,2]
[332179996,1721009444491,-500.0,0.00024657,2]
[332179997,1721009444500,-500.0,0.00024657,2]
[332179998,1721009444509,-500.0,0.00024657,2]
[332179999,1721009444518,-500.0,0.00024657,2]
[332180000,1721009444527,-500.0,0.00024657,2]
[332180001,1721009444537,-554.45,0.00024657,2]
[332180002,1721009444546,-500.0,0.00024657,2]
[332180003,1721009444556,-509.58751626,0.00024657,2]
[332180004,1721009444565,-507.89166043,0.00024657,2]
[332180005,1721009444575,-500.0,0.00024657,2]
[332180006,1721009444584,-500.0,0.00024657,2]
[332180007,1721009444593,-500.0,0.00024657,2]
[332180008,1721009444602,-500.0,0.00024657,2]
[332180009,1721009444611,-500.0,0.00024657,2]
[332180010,1721009444620,-500.0,0.00024657,2]
[332180011,1721009444630,-500.0,0.00024657,2]
[332180012,1721009444639,-67.54898318,0.00024657,2]
[332180013,1721009445060,-252.93533496,0.0001818,2]
[332180014,1721009445070,-432.45101682,0.00024657,2]
[332180015,1721009445079,-500.0,0.00024657,2]
[332180016,1721009445088,-500.0,0.00024657,2]
[332180017,1721009445097,-517.43536706,0.00024657,2]
[332180018,1721009445108,-125.80463294,0.00024657,2]
[332180019,1721009445117,-500.0,0.00024657,2]
[332180020,1721009445126,-500.0,0.00024657,2]
[332180021,1721009445240,-500.0,0.00024657,2]
[332180022,1721009445250,-178.51879006,0.00024657,2]
[332180023,1721009445263,-328.89328258,0.00024657,2]
[332180024,1721009445272,-500.0,0.00024657,2]
[332180025,1721009445280,-500.0,0.00024657,2]
[332180026,1721009445289,-500.0,0.00024657,2]
[332180027,1721009445300,-500.0,0.00024657,2]
[332180028,1721009445309,-500.0,0.00024657,2]
[332180029,1721009445318,-500.0,0.00024657,2]
[332180030,1721009445327,-500.0,0.00024657,2]
[332180031,1721009445336,-500.0,0.00024657,2]
[332180032,1721009445345,-500.0,0.00024657,2]
[332180033,1721009445354,-114.81907583,0.00024657,2]
[332180054,1721009446778,-385.18092417,0.00024657,2]
[332180055,1721009446788,-384.61907583,0.00024657,2]
[332180060,1721010317027,251.9082334,0.00014999,2]
[332180069,1721010546279,842.5489553,0.00014999,2]
[332180078,1721010579766,10652.83006224,0.00014998,2]
[332180253,1721010639112,-746.38128458,0.00016255,2]